{"text_format":"3","workbook":"xlsx","n_sheets":5,"sheets":["Sestava prodejů produktů","Historické údaje","Ceník","Kontingenční graf prodeje","Kontingenční graf trendů"],"not_rendered":{"charts":2,"defined_names":6,"pivot_tables":2},"read":"whole","date_system":"1900"}

{"sheet":"Sestava prodejů produktů","index":0,"n_rows":20,"n_cols":2,"rows_kept":20}
[null,"Sestava prodejů produktů"]
{"$rows_empty":18}
[null,"Produkty"]

{"sheet":"Historické údaje","index":1,"n_rows":33,"n_cols":10,"rows_kept":33}
[null,"Historický ceník produktů a prodeje"]
[]
[null,"ID výrobku","Název výrobku","Údaj o ceně","Maloobchodní cena za jednotku","Velkoobchodní cena za jednotku*","Prodané jednotky (maloobchodní)","Prodané jednotky (velkoobchodní)","Celkem prodeje (počet)","Celkové prodeje (USD)"]
[null,5,{"$f":"IFERROR(IF(tblProdeje[[#This Row],[ID výrobku]]<>\"\",VLOOKUP(tblProdeje[ID výrobku],Ceník!$B$11:$C$15,2,FALSE),\"\"),\"Neznámé ID produktu\")","v":"Kraťasy"},"2012-01-01",20,{"v":20,"d":"20 Kč"},629,{"v":1254,"d":"1,254"},{"$f":"tblProdeje[[#This Row],[Prodané jednotky (maloobchodní)]]+tblProdeje[[#This Row],[Prodané jednotky (velkoobchodní)]]","v":{"v":1883,"d":"1,883"}},{"$f":"tblProdeje[[#This Row],[Prodané jednotky (maloobchodní)]]*tblProdeje[[#This Row],[Maloobchodní cena za jednotku]]+tblProdeje[[#This Row],[Prodané jednotky (velkoobchodní)]]*tblProdeje[[#This Row],[Velkoobchodní cena za jednotku*]]","v":{"v":37660,"d":"37,660 Kč"}}]
[null,1,{"$f":"IFERROR(IF(tblProdeje[[#This Row],[ID výrobku]]<>\"\",VLOOKUP(tblProdeje[ID výrobku],Ceník!$B$11:$C$15,2,FALSE),\"\"),\"Neznámé ID produktu\")","v":"Košile"},"2012-01-01",88,{"v":54,"d":"54 Kč"},734,{"v":1427,"d":"1,427"},{"$f":"tblProdeje[[#This Row],[Prodané jednotky (maloobchodní)]]+tblProdeje[[#This Row],[Prodané jednotky (velkoobchodní)]]","v":{"v":2161,"d":"2,161"}},{"$f":"tblProdeje[[#This Row],[Prodané jednotky (maloobchodní)]]*tblProdeje[[#This Row],[Maloobchodní cena za jednotku]]+tblProdeje[[#This Row],[Prodané jednotky (velkoobchodní)]]*tblProdeje[[#This Row],[Velkoobchodní cena za jednotku*]]","v":{"v":141650,"d":"141,650 Kč"}}]
[null,2,{"$f":"IFERROR(IF(tblProdeje[[#This Row],[ID výrobku]]<>\"\",VLOOKUP(tblProdeje[ID výrobku],Ceník!$B$11:$C$15,2,FALSE),\"\"),\"Neznámé ID produktu\")","v":"Sandály"},"2012-01-01",70,{"v":44,"d":"44 Kč"},744,{"v":1043,"d":"1,043"},{"$f":"tblProdeje[[#This Row],[Prodané jednotky (maloobchodní)]]+tblProdeje[[#This Row],[Prodané jednotky (velkoobchodní)]]","v":{"v":1787,"d":"1,787"}},{"$f":"tblProdeje[[#This Row],[Prodané jednotky (maloobchodní)]]*tblProdeje[[#This Row],[Maloobchodní cena za jednotku]]+tblProdeje[[#This Row],[Prodané jednotky (velkoobchodní)]]*tblProdeje[[#This Row],[Velkoobchodní cena za jednotku*]]","v":{"v":97972,"d":"97,972 Kč"}}]
[null,3,{"$f":"IFERROR(IF(tblProdeje[[#This Row],[ID výrobku]]<>\"\",VLOOKUP(tblProdeje[ID výrobku],Ceník!$B$11:$C$15,2,FALSE),\"\"),\"Neznámé ID produktu\")","v":"Deštníky"},"2012-01-01",63,{"v":44,"d":"44 Kč"},681,{"v":1523,"d":"1,523"},{"$f":"tblProdeje[[#This Row],[Prodané jednotky (maloobchodní)]]+tblProdeje[[#This Row],[Prodané jednotky (velkoobchodní)]]","v":{"v":2204,"d":"2,204"}},{"$f":"tblProdeje[[#This Row],[Prodané jednotky (maloobchodní)]]*tblProdeje[[#This Row],[Maloobchodní cena za jednotku]]+tblProdeje[[#This Row],[Prodané jednotky (velkoobchodní)]]*tblProdeje[[#This Row],[Velkoobchodní cena za jednotku*]]","v":{"v":109915,"d":"109,915 Kč"}}]
[null,4,{"$f":"IFERROR(IF(tblProdeje[[#This Row],[ID výrobku]]<>\"\",VLOOKUP(tblProdeje[ID výrobku],Ceník!$B$11:$C$15,2,FALSE),\"\"),\"Neznámé ID produktu\")","v":"Láhve na vodu"},"2012-01-01",35,{"v":27,"d":"27 Kč"},602,{"v":1822,"d":"1,822"},{"$f":"tblProdeje[[#This Row],[Prodané jednotky (maloobchodní)]]+tblProdeje[[#This Row],[Prodané jednotky (velkoobchodní)]]","v":{"v":2424,"d":"2,424"}},{"$f":"tblProdeje[[#This Row],[Prodané jednotky (maloobchodní)]]*tblProdeje[[#This Row],[Maloobchodní cena za jednotku]]+tblProdeje[[#This Row],[Prodané jednotky (velkoobchodní)]]*tblProdeje[[#This Row],[Velkoobchodní cena za jednotku*]]","v":{"v":70264,"d":"70,264 Kč"}}]
[null,1,{"$f":"IFERROR(IF(tblProdeje[[#This Row],[ID výrobku]]<>\"\",VLOOKUP(tblProdeje[ID výrobku],Ceník!$B$11:$C$15,2,FALSE),\"\"),\"Neznámé ID produktu\")","v":"Košile"},"2012-02-01",55,{"v":44,"d":"44 Kč"},678,{"v":1515,"d":"1,515"},{"$f":"tblProdeje[[#This Row],[Prodané jednotky (maloobchodní)]]+tblProdeje[[#This Row],[Prodané jednotky (velkoobchodní)]]","v":{"v":2193,"d":"2,193"}},{"$f":"tblProdeje[[#This Row],[Prodané jednotky (maloobchodní)]]*tblProdeje[[#This Row],[Maloobchodní cena za jednotku]]+tblProdeje[[#This Row],[Prodané jednotky (velkoobchodní)]]*tblProdeje[[#This Row],[Velkoobchodní cena za jednotku*]]","v":{"v":103950,"d":"103,950 Kč"}}]
[null,2,{"$f":"IFERROR(IF(tblProdeje[[#This Row],[ID výrobku]]<>\"\",VLOOKUP(tblProdeje[ID výrobku],Ceník!$B$11:$C$15,2,FALSE),\"\"),\"Neznámé ID produktu\")","v":"Sandály"},"2012-02-01",83,{"v":54,"d":"54 Kč"},753,{"v":1005,"d":"1,005"},{"$f":"tblProdeje[[#This Row],[Prodané jednotky (maloobchodní)]]+tblProdeje[[#This Row],[Prodané jednotky (velkoobchodní)]]","v":{"v":1758,"d":"1,758"}},{"$f":"tblProdeje[[#This Row],[Prodané jednotky (maloobchodní)]]*tblProdeje[[#This Row],[Maloobchodní cena za jednotku]]+tblProdeje[[#This Row],[Prodané jednotky (velkoobchodní)]]*tblProdeje[[#This Row],[Velkoobchodní cena za jednotku*]]","v":{"v":116769,"d":"116,769 Kč"}}]
[null,3,{"$f":"IFERROR(IF(tblProdeje[[#This Row],[ID výrobku]]<>\"\",VLOOKUP(tblProdeje[ID výrobku],Ceník!$B$11:$C$15,2,FALSE),\"\"),\"Neznámé ID produktu\")","v":"Deštníky"},"2012-02-01",34,{"v":34,"d":"34 Kč"},986,{"v":1069,"d":"1,069"},{"$f":"tblProdeje[[#This Row],[Prodané jednotky (maloobchodní)]]+tblProdeje[[#This Row],[Prodané jednotky (velkoobchodní)]]","v":{"v":2055,"d":"2,055"}},{"$f":"tblProdeje[[#This Row],[Prodané jednotky (maloobchodní)]]*tblProdeje[[#This Row],[Maloobchodní cena za jednotku]]+tblProdeje[[#This Row],[Prodané jednotky (velkoobchodní)]]*tblProdeje[[#This Row],[Velkoobchodní cena za jednotku*]]","v":{"v":69870,"d":"69,870 Kč"}}]
[null,4,{"$f":"IFERROR(IF(tblProdeje[[#This Row],[ID výrobku]]<>\"\",VLOOKUP(tblProdeje[ID výrobku],Ceník!$B$11:$C$15,2,FALSE),\"\"),\"Neznámé ID produktu\")","v":"Láhve na vodu"},"2012-02-01",35,{"v":25,"d":"25 Kč"},848,{"v":1211,"d":"1,211"},{"$f":"tblProdeje[[#This Row],[Prodané jednotky (maloobchodní)]]+tblProdeje[[#This Row],[Prodané jednotky (velkoobchodní)]]","v":{"v":2059,"d":"2,059"}},{"$f":"tblProdeje[[#This Row],[Prodané jednotky (maloobchodní)]]*tblProdeje[[#This Row],[Maloobchodní cena za jednotku]]+tblProdeje[[#This Row],[Prodané jednotky (velkoobchodní)]]*tblProdeje[[#This Row],[Velkoobchodní cena za jednotku*]]","v":{"v":59955,"d":"59,955 Kč"}}]
[null,5,{"$f":"IFERROR(IF(tblProdeje[[#This Row],[ID výrobku]]<>\"\",VLOOKUP(tblProdeje[ID výrobku],Ceník!$B$11:$C$15,2,FALSE),\"\"),\"Neznámé ID produktu\")","v":"Kraťasy"},"2012-02-01",41,{"v":38,"d":"38 Kč"},980,{"v":1330,"d":"1,330"},{"$f":"tblProdeje[[#This Row],[Prodané jednotky (maloobchodní)]]+tblProdeje[[#This Row],[Prodané jednotky (velkoobchodní)]]","v":{"v":2310,"d":"2,310"}},{"$f":"tblProdeje[[#This Row],[Prodané jednotky (maloobchodní)]]*tblProdeje[[#This Row],[Maloobchodní cena za jednotku]]+tblProdeje[[#This Row],[Prodané jednotky (velkoobchodní)]]*tblProdeje[[#This Row],[Velkoobchodní cena za jednotku*]]","v":{"v":90720,"d":"90,720 Kč"}}]
[null,1,{"$f":"IFERROR(IF(tblProdeje[[#This Row],[ID výrobku]]<>\"\",VLOOKUP(tblProdeje[ID výrobku],Ceník!$B$11:$C$15,2,FALSE),\"\"),\"Neznámé ID produktu\")","v":"Košile"},"2012-02-29",27,{"v":18,"d":"18 Kč"},533,{"v":1936,"d":"1,936"},{"$f":"tblProdeje[[#This Row],[Prodané jednotky (maloobchodní)]]+tblProdeje[[#This Row],[Prodané jednotky (velkoobchodní)]]","v":{"v":2469,"d":"2,469"}},{"$f":"tblProdeje[[#This Row],[Prodané jednotky (maloobchodní)]]*tblProdeje[[#This Row],[Maloobchodní cena za jednotku]]+tblProdeje[[#This Row],[Prodané jednotky (velkoobchodní)]]*tblProdeje[[#This Row],[Velkoobchodní cena za jednotku*]]","v":{"v":49239,"d":"49,239 Kč"}}]
[null,2,{"$f":"IFERROR(IF(tblProdeje[[#This Row],[ID výrobku]]<>\"\",VLOOKUP(tblProdeje[ID výrobku],Ceník!$B$11:$C$15,2,FALSE),\"\"),\"Neznámé ID produktu\")","v":"Sandály"},"2012-02-29",38,{"v":28,"d":"28 Kč"},952,{"v":1512,"d":"1,512"},{"$f":"tblProdeje[[#This Row],[Prodané jednotky (maloobchodní)]]+tblProdeje[[#This Row],[Prodané jednotky (velkoobchodní)]]","v":{"v":2464,"d":"2,464"}},{"$f":"tblProdeje[[#This Row],[Prodané jednotky (maloobchodní)]]*tblProdeje[[#This Row],[Maloobchodní cena za jednotku]]+tblProdeje[[#This Row],[Prodané jednotky (velkoobchodní)]]*tblProdeje[[#This Row],[Velkoobchodní cena za jednotku*]]","v":{"v":78512,"d":"78,512 Kč"}}]
[null,3,{"$f":"IFERROR(IF(tblProdeje[[#This Row],[ID výrobku]]<>\"\",VLOOKUP(tblProdeje[ID výrobku],Ceník!$B$11:$C$15,2,FALSE),\"\"),\"Neznámé ID produktu\")","v":"Deštníky"},"2012-02-29",92,{"v":92,"d":"92 Kč"},956,{"v":1266,"d":"1,266"},{"$f":"tblProdeje[[#This Row],[Prodané jednotky (maloobchodní)]]+tblProdeje[[#This Row],[Prodané jednotky (velkoobchodní)]]","v":{"v":2222,"d":"2,222"}},{"$f":"tblProdeje[[#This Row],[Prodané jednotky (maloobchodní)]]*tblProdeje[[#This Row],[Maloobchodní cena za jednotku]]+tblProdeje[[#This Row],[Prodané jednotky (velkoobchodní)]]*tblProdeje[[#This Row],[Velkoobchodní cena za jednotku*]]","v":{"v":204424,"d":"204,424 Kč"}}]
[null,4,{"$f":"IFERROR(IF(tblProdeje[[#This Row],[ID výrobku]]<>\"\",VLOOKUP(tblProdeje[ID výrobku],Ceník!$B$11:$C$15,2,FALSE),\"\"),\"Neznámé ID produktu\")","v":"Láhve na vodu"},"2012-02-29",43,{"v":36,"d":"36 Kč"},952,{"v":1390,"d":"1,390"},{"$f":"tblProdeje[[#This Row],[Prodané jednotky (maloobchodní)]]+tblProdeje[[#This Row],[Prodané jednotky (velkoobchodní)]]","v":{"v":2342,"d":"2,342"}},{"$f":"tblProdeje[[#This Row],[Prodané jednotky (maloobchodní)]]*tblProdeje[[#This Row],[Maloobchodní cena za jednotku]]+tblProdeje[[#This Row],[Prodané jednotky (velkoobchodní)]]*tblProdeje[[#This Row],[Velkoobchodní cena za jednotku*]]","v":{"v":90976,"d":"90,976 Kč"}}]
[null,5,{"$f":"IFERROR(IF(tblProdeje[[#This Row],[ID výrobku]]<>\"\",VLOOKUP(tblProdeje[ID výrobku],Ceník!$B$11:$C$15,2,FALSE),\"\"),\"Neznámé ID produktu\")","v":"Kraťasy"},"2012-02-29",98,{"v":73,"d":"73 Kč"},530,{"v":1452,"d":"1,452"},{"$f":"tblProdeje[[#This Row],[Prodané jednotky (maloobchodní)]]+tblProdeje[[#This Row],[Prodané jednotky (velkoobchodní)]]","v":{"v":1982,"d":"1,982"}},{"$f":"tblProdeje[[#This Row],[Prodané jednotky (maloobchodní)]]*tblProdeje[[#This Row],[Maloobchodní cena za jednotku]]+tblProdeje[[#This Row],[Prodané jednotky (velkoobchodní)]]*tblProdeje[[#This Row],[Velkoobchodní cena za jednotku*]]","v":{"v":157936,"d":"157,936 Kč"}}]
[null,1,{"$f":"IFERROR(IF(tblProdeje[[#This Row],[ID výrobku]]<>\"\",VLOOKUP(tblProdeje[ID výrobku],Ceník!$B$11:$C$15,2,FALSE),\"\"),\"Neznámé ID produktu\")","v":"Košile"},"2012-03-31",38,{"v":28,"d":"28 Kč"},973,{"v":1415,"d":"1,415"},{"$f":"tblProdeje[[#This Row],[Prodané jednotky (maloobchodní)]]+tblProdeje[[#This Row],[Prodané jednotky (velkoobchodní)]]","v":{"v":2388,"d":"2,388"}},{"$f":"tblProdeje[[#This Row],[Prodané jednotky (maloobchodní)]]*tblProdeje[[#This Row],[Maloobchodní cena za jednotku]]+tblProdeje[[#This Row],[Prodané jednotky (velkoobchodní)]]*tblProdeje[[#This Row],[Velkoobchodní cena za jednotku*]]","v":{"v":76594,"d":"76,594 Kč"}}]
[null,2,{"$f":"IFERROR(IF(tblProdeje[[#This Row],[ID výrobku]]<>\"\",VLOOKUP(tblProdeje[ID výrobku],Ceník!$B$11:$C$15,2,FALSE),\"\"),\"Neznámé ID produktu\")","v":"Sandály"},"2012-03-31",50,{"v":36,"d":"36 Kč"},672,{"v":1105,"d":"1,105"},{"$f":"tblProdeje[[#This Row],[Prodané jednotky (maloobchodní)]]+tblProdeje[[#This Row],[Prodané jednotky (velkoobchodní)]]","v":{"v":1777,"d":"1,777"}},{"$f":"tblProdeje[[#This Row],[Prodané jednotky (maloobchodní)]]*tblProdeje[[#This Row],[Maloobchodní cena za jednotku]]+tblProdeje[[#This Row],[Prodané jednotky (velkoobchodní)]]*tblProdeje[[#This Row],[Velkoobchodní cena za jednotku*]]","v":{"v":73380,"d":"73,380 Kč"}}]
[null,3,{"$f":"IFERROR(IF(tblProdeje[[#This Row],[ID výrobku]]<>\"\",VLOOKUP(tblProdeje[ID výrobku],Ceník!$B$11:$C$15,2,FALSE),\"\"),\"Neznámé ID produktu\")","v":"Deštníky"},"2012-03-31",24,{"v":23,"d":"23 Kč"},769,{"v":1629,"d":"1,629"},{"$f":"tblProdeje[[#This Row],[Prodané jednotky (maloobchodní)]]+tblProdeje[[#This Row],[Prodané jednotky (velkoobchodní)]]","v":{"v":2398,"d":"2,398"}},{"$f":"tblProdeje[[#This Row],[Prodané jednotky (maloobchodní)]]*tblProdeje[[#This Row],[Maloobchodní cena za jednotku]]+tblProdeje[[#This Row],[Prodané jednotky (velkoobchodní)]]*tblProdeje[[#This Row],[Velkoobchodní cena za jednotku*]]","v":{"v":55923,"d":"55,923 Kč"}}]
[null,4,{"$f":"IFERROR(IF(tblProdeje[[#This Row],[ID výrobku]]<>\"\",VLOOKUP(tblProdeje[ID výrobku],Ceník!$B$11:$C$15,2,FALSE),\"\"),\"Neznámé ID produktu\")","v":"Láhve na vodu"},"2012-03-31",72,{"v":57,"d":"57 Kč"},985,{"v":1848,"d":"1,848"},{"$f":"tblProdeje[[#This Row],[Prodané jednotky (maloobchodní)]]+tblProdeje[[#This Row],[Prodané jednotky (velkoobchodní)]]","v":{"v":2833,"d":"2,833"}},{"$f":"tblProdeje[[#This Row],[Prodané jednotky (maloobchodní)]]*tblProdeje[[#This Row],[Maloobchodní cena za jednotku]]+tblProdeje[[#This Row],[Prodané jednotky (velkoobchodní)]]*tblProdeje[[#This Row],[Velkoobchodní cena za jednotku*]]","v":{"v":176256,"d":"176,256 Kč"}}]
[null,5,{"$f":"IFERROR(IF(tblProdeje[[#This Row],[ID výrobku]]<>\"\",VLOOKUP(tblProdeje[ID výrobku],Ceník!$B$11:$C$15,2,FALSE),\"\"),\"Neznámé ID produktu\")","v":"Kraťasy"},"2012-03-31",85,{"v":43,"d":"43 Kč"},721,{"v":1426,"d":"1,426"},{"$f":"tblProdeje[[#This Row],[Prodané jednotky (maloobchodní)]]+tblProdeje[[#This Row],[Prodané jednotky (velkoobchodní)]]","v":{"v":2147,"d":"2,147"}},{"$f":"tblProdeje[[#This Row],[Prodané jednotky (maloobchodní)]]*tblProdeje[[#This Row],[Maloobchodní cena za jednotku]]+tblProdeje[[#This Row],[Prodané jednotky (velkoobchodní)]]*tblProdeje[[#This Row],[Velkoobchodní cena za jednotku*]]","v":{"v":122603,"d":"122,603 Kč"}}]
[null,1,{"$f":"IFERROR(IF(tblProdeje[[#This Row],[ID výrobku]]<>\"\",VLOOKUP(tblProdeje[ID výrobku],Ceník!$B$11:$C$15,2,FALSE),\"\"),\"Neznámé ID produktu\")","v":"Košile"},"2012-04-30",91,{"v":65,"d":"65 Kč"},603,{"v":1226,"d":"1,226"},{"$f":"tblProdeje[[#This Row],[Prodané jednotky (maloobchodní)]]+tblProdeje[[#This Row],[Prodané jednotky (velkoobchodní)]]","v":{"v":1829,"d":"1,829"}},{"$f":"tblProdeje[[#This Row],[Prodané jednotky (maloobchodní)]]*tblProdeje[[#This Row],[Maloobchodní cena za jednotku]]+tblProdeje[[#This Row],[Prodané jednotky (velkoobchodní)]]*tblProdeje[[#This Row],[Velkoobchodní cena za jednotku*]]","v":{"v":134563,"d":"134,563 Kč"}}]
[null,2,{"$f":"IFERROR(IF(tblProdeje[[#This Row],[ID výrobku]]<>\"\",VLOOKUP(tblProdeje[ID výrobku],Ceník!$B$11:$C$15,2,FALSE),\"\"),\"Neznámé ID produktu\")","v":"Sandály"},"2012-04-30",91,{"v":55,"d":"55 Kč"},892,{"v":1823,"d":"1,823"},{"$f":"tblProdeje[[#This Row],[Prodané jednotky (maloobchodní)]]+tblProdeje[[#This Row],[Prodané jednotky (velkoobchodní)]]","v":{"v":2715,"d":"2,715"}},{"$f":"tblProdeje[[#This Row],[Prodané jednotky (maloobchodní)]]*tblProdeje[[#This Row],[Maloobchodní cena za jednotku]]+tblProdeje[[#This Row],[Prodané jednotky (velkoobchodní)]]*tblProdeje[[#This Row],[Velkoobchodní cena za jednotku*]]","v":{"v":181437,"d":"181,437 Kč"}}]
[null,3,{"$f":"IFERROR(IF(tblProdeje[[#This Row],[ID výrobku]]<>\"\",VLOOKUP(tblProdeje[ID výrobku],Ceník!$B$11:$C$15,2,FALSE),\"\"),\"Neznámé ID produktu\")","v":"Deštníky"},"2012-04-30",42,{"v":42,"d":"42 Kč"},611,{"v":1181,"d":"1,181"},{"$f":"tblProdeje[[#This Row],[Prodané jednotky (maloobchodní)]]+tblProdeje[[#This Row],[Prodané jednotky (velkoobchodní)]]","v":{"v":1792,"d":"1,792"}},{"$f":"tblProdeje[[#This Row],[Prodané jednotky (maloobchodní)]]*tblProdeje[[#This Row],[Maloobchodní cena za jednotku]]+tblProdeje[[#This Row],[Prodané jednotky (velkoobchodní)]]*tblProdeje[[#This Row],[Velkoobchodní cena za jednotku*]]","v":{"v":75264,"d":"75,264 Kč"}}]
[null,4,{"$f":"IFERROR(IF(tblProdeje[[#This Row],[ID výrobku]]<>\"\",VLOOKUP(tblProdeje[ID výrobku],Ceník!$B$11:$C$15,2,FALSE),\"\"),\"Neznámé ID produktu\")","v":"Láhve na vodu"},"2012-04-30",85,{"v":43,"d":"43 Kč"},530,{"v":1039,"d":"1,039"},{"$f":"tblProdeje[[#This Row],[Prodané jednotky (maloobchodní)]]+tblProdeje[[#This Row],[Prodané jednotky (velkoobchodní)]]","v":{"v":1569,"d":"1,569"}},{"$f":"tblProdeje[[#This Row],[Prodané jednotky (maloobchodní)]]*tblProdeje[[#This Row],[Maloobchodní cena za jednotku]]+tblProdeje[[#This Row],[Prodané jednotky (velkoobchodní)]]*tblProdeje[[#This Row],[Velkoobchodní cena za jednotku*]]","v":{"v":89727,"d":"89,727 Kč"}}]
[null,5,{"$f":"IFERROR(IF(tblProdeje[[#This Row],[ID výrobku]]<>\"\",VLOOKUP(tblProdeje[ID výrobku],Ceník!$B$11:$C$15,2,FALSE),\"\"),\"Neznámé ID produktu\")","v":"Kraťasy"},"2012-04-30",82,{"v":71,"d":"71 Kč"},716,{"v":1249,"d":"1,249"},{"$f":"tblProdeje[[#This Row],[Prodané jednotky (maloobchodní)]]+tblProdeje[[#This Row],[Prodané jednotky (velkoobchodní)]]","v":{"v":1965,"d":"1,965"}},{"$f":"tblProdeje[[#This Row],[Prodané jednotky (maloobchodní)]]*tblProdeje[[#This Row],[Maloobchodní cena za jednotku]]+tblProdeje[[#This Row],[Prodané jednotky (velkoobchodní)]]*tblProdeje[[#This Row],[Velkoobchodní cena za jednotku*]]","v":{"v":147391,"d":"147,391 Kč"}}]
[null,1,{"$f":"IFERROR(IF(tblProdeje[[#This Row],[ID výrobku]]<>\"\",VLOOKUP(tblProdeje[ID výrobku],Ceník!$B$11:$C$15,2,FALSE),\"\"),\"Neznámé ID produktu\")","v":"Košile"},"2012-05-14",34,{"v":31,"d":"31 Kč"},850,{"v":1548,"d":"1,548"},{"$f":"tblProdeje[[#This Row],[Prodané jednotky (maloobchodní)]]+tblProdeje[[#This Row],[Prodané jednotky (velkoobchodní)]]","v":{"v":2398,"d":"2,398"}},{"$f":"tblProdeje[[#This Row],[Prodané jednotky (maloobchodní)]]*tblProdeje[[#This Row],[Maloobchodní cena za jednotku]]+tblProdeje[[#This Row],[Prodané jednotky (velkoobchodní)]]*tblProdeje[[#This Row],[Velkoobchodní cena za jednotku*]]","v":{"v":76888,"d":"76,888 Kč"}}]
[null,2,{"$f":"IFERROR(IF(tblProdeje[[#This Row],[ID výrobku]]<>\"\",VLOOKUP(tblProdeje[ID výrobku],Ceník!$B$11:$C$15,2,FALSE),\"\"),\"Neznámé ID produktu\")","v":"Sandály"},"2012-05-14",64,{"v":40,"d":"40 Kč"},876,{"v":1663,"d":"1,663"},{"$f":"tblProdeje[[#This Row],[Prodané jednotky (maloobchodní)]]+tblProdeje[[#This Row],[Prodané jednotky (velkoobchodní)]]","v":{"v":2539,"d":"2,539"}},{"$f":"tblProdeje[[#This Row],[Prodané jednotky (maloobchodní)]]*tblProdeje[[#This Row],[Maloobchodní cena za jednotku]]+tblProdeje[[#This Row],[Prodané jednotky (velkoobchodní)]]*tblProdeje[[#This Row],[Velkoobchodní cena za jednotku*]]","v":{"v":122584,"d":"122,584 Kč"}}]
[null,3,{"$f":"IFERROR(IF(tblProdeje[[#This Row],[ID výrobku]]<>\"\",VLOOKUP(tblProdeje[ID výrobku],Ceník!$B$11:$C$15,2,FALSE),\"\"),\"Neznámé ID produktu\")","v":"Deštníky"},"2012-05-14",33,{"v":30,"d":"30 Kč"},881,{"v":1149,"d":"1,149"},{"$f":"tblProdeje[[#This Row],[Prodané jednotky (maloobchodní)]]+tblProdeje[[#This Row],[Prodané jednotky (velkoobchodní)]]","v":{"v":2030,"d":"2,030"}},{"$f":"tblProdeje[[#This Row],[Prodané jednotky (maloobchodní)]]*tblProdeje[[#This Row],[Maloobchodní cena za jednotku]]+tblProdeje[[#This Row],[Prodané jednotky (velkoobchodní)]]*tblProdeje[[#This Row],[Velkoobchodní cena za jednotku*]]","v":{"v":63543,"d":"63,543 Kč"}}]
[null,4,{"$f":"IFERROR(IF(tblProdeje[[#This Row],[ID výrobku]]<>\"\",VLOOKUP(tblProdeje[ID výrobku],Ceník!$B$11:$C$15,2,FALSE),\"\"),\"Neznámé ID produktu\")","v":"Láhve na vodu"},"2012-05-14",29,{"v":27,"d":"27 Kč"},802,{"v":1548,"d":"1,548"},{"$f":"tblProdeje[[#This Row],[Prodané jednotky (maloobchodní)]]+tblProdeje[[#This Row],[Prodané jednotky (velkoobchodní)]]","v":{"v":2350,"d":"2,350"}},{"$f":"tblProdeje[[#This Row],[Prodané jednotky (maloobchodní)]]*tblProdeje[[#This Row],[Maloobchodní cena za jednotku]]+tblProdeje[[#This Row],[Prodané jednotky (velkoobchodní)]]*tblProdeje[[#This Row],[Velkoobchodní cena za jednotku*]]","v":{"v":65054,"d":"65,054 Kč"}}]
[null,5,{"$f":"IFERROR(IF(tblProdeje[[#This Row],[ID výrobku]]<>\"\",VLOOKUP(tblProdeje[ID výrobku],Ceník!$B$11:$C$15,2,FALSE),\"\"),\"Neznámé ID produktu\")","v":"Kraťasy"},"2013-12-11",24,{"v":15,"d":"15 Kč"},824,{"v":1994,"d":"1,994"},{"$f":"tblProdeje[[#This Row],[Prodané jednotky (maloobchodní)]]+tblProdeje[[#This Row],[Prodané jednotky (velkoobchodní)]]","v":{"v":2818,"d":"2,818"}},{"$f":"tblProdeje[[#This Row],[Prodané jednotky (maloobchodní)]]*tblProdeje[[#This Row],[Maloobchodní cena za jednotku]]+tblProdeje[[#This Row],[Prodané jednotky (velkoobchodní)]]*tblProdeje[[#This Row],[Velkoobchodní cena za jednotku*]]","v":{"v":49686,"d":"49,686 Kč"}}]

{"sheet":"Ceník","index":2,"n_rows":18,"n_cols":6,"rows_kept":18,"merged":[[15,1,15,5]]}
[null,"Ceník produktů"]
[]
[null,"Adventure Works"]
[null,"Masarykova 234"]
[null,"Zlín, 763 51"]
[null,"Telefon: (425) 555-0150"]
[null,"FAX: (425) 555-0152"]
[null,"www.adventure-works.com",{"$nulls":3},"Poslední aktualizace: 15. 8. 2013"]
[]
[null,"ID výrobku","Název","Popis","Maloobchodní cena za jednotku","Velkoobchodní cena za jednotku*"]
[null,1,"Košile","S našimi předepranými tričky ze 100% bavlny budete celé léto vypadat báječně.",{"v":22,"d":"22 Kč"},{"v":15,"d":"15.00 Kč"}]
[null,2,"Sandály","Noste naše gumové sandály pro velkou zátěž a můžete se snadno procházet i na tom nejrozehřátějším písku.",{"v":10,"d":"10 Kč"},{"v":6,"d":"6.00 Kč"}]
[null,3,"Deštníky","Skryjte se před sluncem pod naším extra velkým slunečníkem, který blokuje 96 % veškerého škodlivého UV záření.",{"v":30,"d":"30 Kč"},{"v":20,"d":"20.00 Kč"}]
[null,4,"Láhve na vodu","Nezapomeňte pít dostatečné množství vody z našich izolovaných láhví.",{"v":7,"d":"7 Kč"},{"v":5,"d":"5.00 Kč"}]
[null,5,"Kraťasy","V našich ultra rychleschnoucích nylonových kraťasech můžete jít z vody rovnou do auta.",{"v":15,"d":"15 Kč"},{"v":8,"d":"8.00 Kč"}]
[]
[{"$nulls":5},"Zavolejte nám, pokud se chcete zeptat na položky, které nejsou uvedené."]
[{"$nulls":5},"*Hromadné ceny se vztahují na množství 12 nebo více jednotek."]

{"sheet":"Kontingenční graf prodeje","index":3,"n_rows":10,"n_cols":4,"rows_kept":10,"hidden":true,"merged":[[1,1,1,3]]}
[null,"Kontingenční tabulka Ceny"]
[null,"Tento list by měl zůstat skrytý. Jakékoli změny provedené v níže uvedené kontingenční tabulce by mohly způsobit nesprávná data v sestavě prodejů produktů. "]
[null,"Vybraný produkt",{"$f":"IF(LEN(B5),B5,\"Žádné\")","v":"Sandály"}]
[null,"Název výrobku","Maloobchodní cena za jednotku","Součet prodejů celkem (poč.)"]
[null,"Sandály",{"v":38,"d":"38 Kč"},2464]
[null,null,{"v":50,"d":"50 Kč"},1777]
[null,null,{"v":64,"d":"64 Kč"},2539]
[null,null,{"v":70,"d":"70 Kč"},1787]
[null,null,{"v":83,"d":"83 Kč"},1758]
[null,null,{"v":91,"d":"91 Kč"},2715]

{"sheet":"Kontingenční graf trendů","index":4,"n_rows":9,"n_cols":3,"rows_kept":9,"hidden":true,"merged":[[1,1,1,3]]}
[null,"Kontingenční tabulka Prodejní trend"]
[null,"Tento list by měl zůstat skrytý. Jakékoli změny provedené v níže uvedené kontingenční tabulce by mohly způsobit nesprávná data v sestavě prodejů produktů. "]
[null,"Součet prodejů celkem (poč.)","Název výrobku"]
[null,"Údaj o ceně","Sandály"]
[null,"Leden",1787]
[null,"Únor",4222]
[null,"Březen",1777]
[null,"Duben",2715]
[null,"Květen",2539]